[Event "Early-Titled-Tuesday-Blitz-January-23-2024"]
[Site "Chess.com"]
[Date "2024.01.23"]
[Round "6"]
[White "FLYD"]
[Black "DeArron_Fox"]
[Result "1-0"]
[WhiteElo "2114"]
[BlackElo "2443"]
[TimeControl "180+1"]
[EndTime "9:06:01 PST"]
[Termination "FLYD won on time"]

1. e4 {[%clk 0:03:00.9]} 1... c5 {[%clk 0:02:37.1]} 2. Nf3 {[%clk 0:03:01]} 2...
e6 {[%clk 0:02:30.4]} 3. g3 {[%clk 0:03:00.6]} 3... d5 {[%clk 0:02:30.2]} 4.
exd5 {[%clk 0:03:00]} 4... exd5 {[%clk 0:02:31.1]} 5. d4 {[%clk 0:03:00.2]} 5...
Nf6 {[%clk 0:02:31.5]} 6. Bg2 {[%clk 0:02:57.4]} 6... Be7 {[%clk 0:02:31.7]} 7.
O-O {[%clk 0:02:57.7]} 7... O-O {[%clk 0:02:32.2]} 8. Re1 {[%clk 0:02:52.9]}
8... Nc6 {[%clk 0:02:26.1]} 9. c3 {[%clk 0:02:51.5]} 9... Bg4 {[%clk 0:02:24.9]}
10. h3 {[%clk 0:02:48.1]} 10... Bh5 {[%clk 0:02:17.8]} 11. Be3 {[%clk
0:02:43.9]} 11... Ne4 {[%clk 0:01:48.5]} 12. Qc2 {[%clk 0:02:36.3]} 12... Rc8
{[%clk 0:01:38.7]} 13. g4 {[%clk 0:02:09.4]} 13... Bg6 {[%clk 0:01:35.5]} 14.
Qd1 {[%clk 0:02:09.4]} 14... Qb6 {[%clk 0:01:24.3]} 15. b3 {[%clk 0:01:52]}
15... cxd4 {[%clk 0:01:06.2]} 16. Nxd4 {[%clk 0:01:52.9]} 16... Bc5 {[%clk
0:01:06.1]} 17. Nxc6 {[%clk 0:01:50.5]} 17... bxc6 {[%clk 0:01:00]} 18. b4
{[%clk 0:01:14.1]} 18... Bxe3 {[%clk 0:00:50.4]} 19. Rxe3 {[%clk 0:01:15]} 19...
f5 {[%clk 0:00:19.1]} 20. Bxe4 {[%clk 0:01:11.2]} 20... dxe4 {[%clk 0:00:15.6]}
21. Nd2 {[%clk 0:00:40]} 21... f4 {[%clk 0:00:12]} 22. Re1 {[%clk 0:00:40.2]}
22... e3 {[%clk 0:00:11.6]} 23. fxe3 {[%clk 0:00:39.7]} 23... fxe3 {[%clk
0:00:12.5]} 24. Nc4 {[%clk 0:00:37.3]} 24... e2+ {[%clk 0:00:07.3]} 25. Qd4
{[%clk 0:00:36.5]} 25... Qc7 {[%clk 0:00:04.6]} 26. Qd6 {[%clk 0:00:32.9]} 26...
Qf7 {[%clk 0:00:03.9]} 27. Qd4 {[%clk 0:00:19.8]} 27... Qf3 {[%clk 0:00:03.4]}
28. Qe3 {[%clk 0:00:14.4]} 28... Qd5 {[%clk 0:00:02.2]} 29. Ne5 {[%clk
0:00:11.3]} 29... Rce8 {[%clk 0:00:01.4]} 30. Rxe2 {[%clk 0:00:10.9]} 1-0

[Event "Early-Titled-Tuesday-Blitz-January-23-2024"]
[Site "Chess.com"]
[Date "2024.01.23"]
[Round "6"]
[White "MKlose11"]
[Black "Janosik"]
[Result "1/2-1/2"]
[WhiteElo "2658"]
[BlackElo "2841"]
[TimeControl "180+1"]
[EndTime "9:06:05 PST"]
[Termination "Game drawn - insufficient material"]

1. e4 {[%clk 0:02:56.5]} 1... e5 {[%clk 0:02:58.2]} 2. Nf3 {[%clk 0:02:55.7]}
2... Nc6 {[%clk 0:02:58.8]} 3. d4 {[%clk 0:02:56.5]} 3... exd4 {[%clk
0:02:58.6]} 4. Bc4 {[%clk 0:02:57.2]} 4... Nf6 {[%clk 0:02:57]} 5. O-O {[%clk
0:02:55]} 5... Nxe4 {[%clk 0:02:56.4]} 6. Re1 {[%clk 0:02:55.4]} 6... d5 {[%clk
0:02:56.7]} 7. Bxd5 {[%clk 0:02:55.9]} 7... Qxd5 {[%clk 0:02:57.6]} 8. Nc3
{[%clk 0:02:56.3]} 8... Qa5 {[%clk 0:02:55.1]} 9. Nxe4 {[%clk 0:02:56.1]} 9...
Be6 {[%clk 0:02:55.7]} 10. Neg5 {[%clk 0:02:56.4]} 10... O-O-O {[%clk
0:02:55.7]} 11. Nxe6 {[%clk 0:02:57]} 11... fxe6 {[%clk 0:02:56.6]} 12. Rxe6
{[%clk 0:02:57.2]} 12... h6 {[%clk 0:02:57]} 13. Qe2 {[%clk 0:02:54.2]} 13...
Bd6 {[%clk 0:02:54.4]} 14. Bd2 {[%clk 0:02:51.1]} 14... Qd5 {[%clk 0:02:54.4]}
15. Qe4 {[%clk 0:02:48.7]} 15... Qxe4 {[%clk 0:02:49.5]} 16. Rxe4 {[%clk
0:02:48.2]} 16... Rhe8 {[%clk 0:02:50.4]} 17. Rae1 {[%clk 0:02:47.8]} 17... Rxe4
{[%clk 0:02:50.5]} 18. Rxe4 {[%clk 0:02:48.7]} 18... Bf8 {[%clk 0:02:48.7]} 19.
Kf1 {[%clk 0:02:47.1]} 19... Bc5 {[%clk 0:02:39.6]} 20. Ke2 {[%clk 0:02:44.7]}
20... a5 {[%clk 0:02:39.9]} 21. a3 {[%clk 0:02:44.2]} 21... a4 {[%clk
0:02:37.9]} 22. Kd3 {[%clk 0:02:42.1]} 22... b6 {[%clk 0:02:33.8]} 23. Ne5
{[%clk 0:02:40.2]} 23... Ne7 {[%clk 0:02:23.6]} 24. Nf3 {[%clk 0:02:39.1]} 24...
Nf5 {[%clk 0:02:13.9]} 25. Re5 {[%clk 0:02:28.3]} 25... Rf8 {[%clk 0:02:06.6]}
26. Bb4 {[%clk 0:02:24]} 26... Bxb4 {[%clk 0:02:02.4]} 27. axb4 {[%clk
0:02:24.9]} 27... g5 {[%clk 0:02:01.3]} 28. Re2 {[%clk 0:02:16.6]} 28... g4
{[%clk 0:01:32.2]} 29. Nxd4 {[%clk 0:01:56.1]} 29... Rd8 {[%clk 0:01:32.4]} 30.
c3 {[%clk 0:01:56.4]} 30... c5 {[%clk 0:01:32.8]} 31. bxc5 {[%clk 0:01:57.3]}
31... bxc5 {[%clk 0:01:33.7]} 32. Re5 {[%clk 0:01:57.6]} 32... Nxd4 {[%clk
0:01:34]} 33. Rxc5+ {[%clk 0:01:55.8]} 33... Nc6+ {[%clk 0:01:33.9]} 34. Ke3
{[%clk 0:01:49.6]} 34... Kb7 {[%clk 0:01:04.7]} 35. Rc4 {[%clk 0:01:49]} 35...
Re8+ {[%clk 0:01:05.1]} 36. Kf4 {[%clk 0:01:40.5]} 36... Re2 {[%clk 0:01:01]}
37. Kg3 {[%clk 0:01:39]} 37... Rxb2 {[%clk 0:00:53.2]} 38. Rxa4 {[%clk
0:01:38.9]} 38... h5 {[%clk 0:00:53.2]} 39. Rf4 {[%clk 0:01:18.9]} 39... Rb5
{[%clk 0:00:39.8]} 40. c4 {[%clk 0:01:03.5]} 40... Rc5 {[%clk 0:00:38.4]} 41.
Re4 {[%clk 0:01:03.8]} 41... Kc7 {[%clk 0:00:36]} 42. h3 {[%clk 0:01:02]} 42...
gxh3 {[%clk 0:00:32.8]} 43. Kxh3 {[%clk 0:01:02.9]} 43... Kd6 {[%clk 0:00:33.2]}
44. Kh4 {[%clk 0:01:02]} 44... Ne7 {[%clk 0:00:29.4]} 45. g4 {[%clk 0:00:45.7]}
45... Ng6+ {[%clk 0:00:29.1]} 46. Kh3 {[%clk 0:00:45.4]} 46... hxg4+ {[%clk
0:00:18.3]} 47. Kxg4 {[%clk 0:00:45.4]} 47... Ne5+ {[%clk 0:00:19.2]} 48. Kg3
{[%clk 0:00:45]} 48... Nxc4 {[%clk 0:00:19.6]} 49. f4 {[%clk 0:00:43.2]} 49...
Kd5 {[%clk 0:00:19.5]} 50. Re8 {[%clk 0:00:41.5]} 50... Nd6 {[%clk 0:00:19.8]}
51. Re5+ {[%clk 0:00:40.8]} 51... Kd4 {[%clk 0:00:20.4]} 52. Rxc5 {[%clk
0:00:41.7]} 52... Kxc5 {[%clk 0:00:20.9]} 53. Kg4 {[%clk 0:00:42.3]} 53... Kd5
{[%clk 0:00:20.8]} 54. Kg5 {[%clk 0:00:43.2]} 54... Ke4 {[%clk 0:00:21]} 55. f5
{[%clk 0:00:44.1]} 55... Nxf5 {[%clk 0:00:21.3]} 1/2-1/2

[Event "Early-Titled-Tuesday-Blitz-January-23-2024"]
[Site "Chess.com"]
[Date "2024.01.23"]
[Round "6"]
[White "Boninknights"]
[Black "ama18"]
[Result "0-1"]
[WhiteElo "2344"]
[BlackElo "2523"]
[TimeControl "180+1"]
[EndTime "9:06:05 PST"]
[Termination "ama18 won by resignation"]

1. d4 {[%clk 0:02:59.4]} 1... Nf6 {[%clk 0:02:51.6]} 2. Nf3 {[%clk 0:02:58.3]}
2... e6 {[%clk 0:02:47.6]} 3. c4 {[%clk 0:02:57.9]} 3... b6 {[%clk 0:02:31.8]}
4. g3 {[%clk 0:02:44.5]} 4... Bb7 {[%clk 0:02:29.6]} 5. Bg2 {[%clk 0:02:42.6]}
5... Be7 {[%clk 0:02:30.3]} 6. O-O {[%clk 0:02:41.4]} 6... O-O {[%clk
0:02:24.8]} 7. Nc3 {[%clk 0:02:40.9]} 7... Ne4 {[%clk 0:02:24.5]} 8. Nxe4 {[%clk
0:02:40.4]} 8... Bxe4 {[%clk 0:02:23.9]} 9. Ne1 {[%clk 0:02:40.3]} 9... Bxg2
{[%clk 0:02:24.8]} 10. Nxg2 {[%clk 0:02:40.1]} 10... Nc6 {[%clk 0:02:24.8]} 11.
d5 {[%clk 0:02:38.3]} 11... Na5 {[%clk 0:02:23.6]} 12. b3 {[%clk 0:02:36.8]}
12... Bf6 {[%clk 0:02:23.7]} 13. Rb1 {[%clk 0:02:35.7]} 13... exd5 {[%clk
0:02:22]} 14. cxd5 {[%clk 0:02:33.8]} 14... Nb7 {[%clk 0:02:20]} 15. e4 {[%clk
0:02:30]} 15... Re8 {[%clk 0:02:17.8]} 16. Re1 {[%clk 0:02:28.4]} 16... d6
{[%clk 0:02:17.6]} 17. b4 {[%clk 0:02:21]} 17... a5 {[%clk 0:02:17.2]} 18. a3
{[%clk 0:02:20.2]} 18... axb4 {[%clk 0:02:17.6]} 19. axb4 {[%clk 0:02:19.2]}
19... Qd7 {[%clk 0:02:15.2]} 20. Bb2 {[%clk 0:02:12.3]} 20... Bxb2 {[%clk
0:02:10.5]} 21. Rxb2 {[%clk 0:02:12.1]} 21... Qa4 {[%clk 0:02:07.3]} 22. Qxa4
{[%clk 0:02:07.8]} 22... Rxa4 {[%clk 0:02:08.2]} 23. f3 {[%clk 0:02:03.4]} 23...
f6 {[%clk 0:01:58.5]} 24. Rc1 {[%clk 0:01:58.4]} 24... Re7 {[%clk 0:01:58.4]}
25. Nf4 {[%clk 0:01:55.1]} 25... Nd8 {[%clk 0:01:56.8]} 26. Rbc2 {[%clk
0:01:45.5]} 26... Ra7 {[%clk 0:01:40.5]} 27. b5 {[%clk 0:01:43.7]} 27... Kf7
{[%clk 0:01:39.1]} 28. g4 {[%clk 0:01:36.8]} 28... Ke8 {[%clk 0:01:38.3]} 29.
Nh5 {[%clk 0:01:31.6]} 29... Kd7 {[%clk 0:01:31.2]} 30. Ng3 {[%clk 0:01:25]}
30... g6 {[%clk 0:01:28.9]} 31. h4 {[%clk 0:01:20.8]} 31... Kc8 {[%clk
0:01:27.5]} 32. g5 {[%clk 0:01:18.1]} 32... fxg5 {[%clk 0:01:26.9]} 33. hxg5
{[%clk 0:01:17.1]} 33... Ra5 {[%clk 0:01:21.2]} 34. Rb2 {[%clk 0:01:15.8]} 34...
Nb7 {[%clk 0:01:16.7]} 35. Ne2 {[%clk 0:01:13.9]} 35... Nc5 {[%clk 0:01:15.4]}
36. Rc4 {[%clk 0:01:08.3]} 36... Nd3 {[%clk 0:01:12.3]} 37. Rbc2 {[%clk
0:01:02.9]} 37... Rxb5 {[%clk 0:01:06.3]} 38. Nd4 {[%clk 0:01:00.7]} 38... Rb1+
{[%clk 0:01:05.9]} 39. Kg2 {[%clk 0:00:59.8]} 39... Ne1+ {[%clk 0:01:03.2]} 40.
Kg3 {[%clk 0:00:59]} 40... Nxc2 {[%clk 0:01:04.1]} 41. Rxc2 {[%clk 0:00:56.8]}
41... Rg1+ {[%clk 0:00:55.6]} 42. Kf4 {[%clk 0:00:55.4]} 42... Rf7+ {[%clk
0:00:54.7]} 43. Ke3 {[%clk 0:00:55]} 43... Rxg5 {[%clk 0:00:54.6]} 44. Nb5
{[%clk 0:00:53]} 44... Kd8 {[%clk 0:00:47.3]} 45. Ra2 {[%clk 0:00:50.8]} 45...
Rg1 {[%clk 0:00:46.4]} 46. Ra8+ {[%clk 0:00:48.4]} 46... Kd7 {[%clk 0:00:46.5]}
47. Nxc7 {[%clk 0:00:48.1]} 47... Re1+ {[%clk 0:00:34.9]} 48. Kd2 {[%clk
0:00:46.3]} 48... Rb1 {[%clk 0:00:28.8]} 49. Nb5 {[%clk 0:00:37.7]} 49... Rxb5
{[%clk 0:00:27.6]} 0-1

[Event "Early-Titled-Tuesday-Blitz-January-23-2024"]
[Site "Chess.com"]
[Date "2024.01.23"]
[Round "6"]
[White "RCone"]
[Black "RodokininEV"]
[Result "0-1"]
[WhiteElo "2428"]
[BlackElo "2611"]
[TimeControl "180+1"]
[EndTime "9:06:08 PST"]
[Termination "RodokininEV won by checkmate"]

1. e4 {[%clk 0:03:00.9]} 1... e6 {[%clk 0:02:57.2]} 2. d4 {[%clk 0:03:00.5]}
2... d5 {[%clk 0:02:57.4]} 3. e5 {[%clk 0:03:00.3]} 3... b6 {[%clk 0:02:57]} 4.
c3 {[%clk 0:03:01.1]} 4... Qd7 {[%clk 0:02:56.9]} 5. Nf3 {[%clk 0:03:00.4]} 5...
Ba6 {[%clk 0:02:56.7]} 6. Bxa6 {[%clk 0:03:00.8]} 6... Nxa6 {[%clk 0:02:57.6]}
7. O-O {[%clk 0:03:00.3]} 7... h5 {[%clk 0:02:57.3]} 8. Qd3 {[%clk 0:03:00.6]}
8... Nb8 {[%clk 0:02:57.1]} 9. h4 {[%clk 0:02:58.9]} 9... Nh6 {[%clk 0:02:57]}
10. Bxh6 {[%clk 0:02:58.5]} 10... Rxh6 {[%clk 0:02:57.8]} 11. Nbd2 {[%clk
0:02:56.3]} 11... Nc6 {[%clk 0:02:57.1]} 12. a3 {[%clk 0:02:55.5]} 12... Ne7
{[%clk 0:02:56.9]} 13. b3 {[%clk 0:02:54.4]} 13... Nf5 {[%clk 0:02:55.5]} 14. c4
{[%clk 0:02:53.7]} 14... Be7 {[%clk 0:02:53.8]} 15. g3 {[%clk 0:02:53.3]} 15...
Rg6 {[%clk 0:02:49.4]} 16. Kh2 {[%clk 0:02:51.5]} 16... O-O-O {[%clk 0:02:41.1]}
17. c5 {[%clk 0:02:47.9]} 17... Rg4 {[%clk 0:02:29.7]} 18. Rfc1 {[%clk
0:02:24.3]} 18... Kb8 {[%clk 0:02:26.5]} 19. b4 {[%clk 0:02:22.5]} 19... Rg8
{[%clk 0:02:22.1]} 20. a4 {[%clk 0:02:09.6]} 20... g5 {[%clk 0:02:21.7]} 21.
hxg5 {[%clk 0:02:06.9]} 21... h4 {[%clk 0:02:21.4]} 22. Nf1 {[%clk 0:01:53]}
22... Bxg5 {[%clk 0:02:14.4]} 23. a5 {[%clk 0:01:49.3]} 23... hxg3+ {[%clk
0:02:14]} 24. fxg3 {[%clk 0:01:46.6]} 24... Bf4 {[%clk 0:02:08.8]} 25. axb6
{[%clk 0:01:25.2]} 25... Bxg3+ {[%clk 0:02:08]} 26. Kh3 {[%clk 0:01:15.5]} 26...
cxb6 {[%clk 0:01:58.1]} 27. cxb6 {[%clk 0:01:11.3]} 27... Qd8 {[%clk 0:01:06.2]}
28. Rc8+ {[%clk 0:00:25]} 28... Qxc8 {[%clk 0:00:53.8]} 29. Rxa7 {[%clk
0:00:24.4]} 29... Qc6 {[%clk 0:00:23.8]} 30. Qa3 {[%clk 0:00:16.5]} 30... R4g6
{[%clk 0:00:17.3]} 31. b7 {[%clk 0:00:10.4]} 31... Rh6+ {[%clk 0:00:12.9]} 32.
Nh4 {[%clk 0:00:09.7]} 32... Rxh4+ {[%clk 0:00:12.7]} 33. Kg2 {[%clk 0:00:09.8]}
33... Bxe5+ {[%clk 0:00:12.4]} 34. Kf3 {[%clk 0:00:10.3]} 34... Nxd4+ {[%clk
0:00:11.1]} 35. Kf2 {[%clk 0:00:09]} 35... Qc2+ {[%clk 0:00:10.8]} 36. Ke1
{[%clk 0:00:07.5]} 36... Qe2# {[%clk 0:00:11.1]} 0-1

[Event "Early-Titled-Tuesday-Blitz-January-23-2024"]
[Site "Chess.com"]
[Date "2024.01.23"]
[Round "6"]
[White "MalyDominator"]
[Black "NowInChess"]
[Result "1-0"]
[WhiteElo "2524"]
[BlackElo "2279"]
[TimeControl "180+1"]
[EndTime "9:06:09 PST"]
[Termination "MalyDominator won on time"]

1. e4 {[%clk 0:03:00.9]} 1... e6 {[%clk 0:02:59.2]} 2. d3 {[%clk 0:03:00.3]}
2... d5 {[%clk 0:02:59.7]} 3. Nd2 {[%clk 0:03:00.7]} 3... Nf6 {[%clk 0:02:58.3]}
4. Ngf3 {[%clk 0:03:01.1]} 4... c5 {[%clk 0:02:57.6]} 5. g3 {[%clk 0:03:01.6]}
5... Be7 {[%clk 0:02:56.1]} 6. Bg2 {[%clk 0:03:02.1]} 6... b5 {[%clk 0:02:56.3]}
7. O-O {[%clk 0:03:02.7]} 7... Nc6 {[%clk 0:02:56.4]} 8. e5 {[%clk 0:03:00.2]}
8... Nd7 {[%clk 0:02:56]} 9. Re1 {[%clk 0:03:00.8]} 9... Qc7 {[%clk 0:02:51.7]}
10. Qe2 {[%clk 0:03:00.7]} 10... g5 {[%clk 0:02:51.2]} 11. h3 {[%clk 0:02:59.2]}
11... h5 {[%clk 0:02:51]} 12. Nf1 {[%clk 0:02:58.7]} 12... g4 {[%clk 0:02:48.9]}
13. hxg4 {[%clk 0:02:58.9]} 13... hxg4 {[%clk 0:02:49.1]} 14. N3h2 {[%clk
0:02:59.6]} 14... Qxe5 {[%clk 0:02:40.8]} 15. Nxg4 {[%clk 0:02:53.9]} 15... Qxe2
{[%clk 0:02:37.4]} 16. Rxe2 {[%clk 0:02:54.8]} 16... Nd4 {[%clk 0:02:31.5]} 17.
Rd2 {[%clk 0:02:54.7]} 17... Nf6 {[%clk 0:02:04.4]} 18. Nxf6+ {[%clk 0:02:52.8]}
18... Bxf6 {[%clk 0:02:05.3]} 19. c3 {[%clk 0:02:53.1]} 19... Nf5 {[%clk
0:02:00.7]} 20. Re2 {[%clk 0:02:51.6]} 20... Bb7 {[%clk 0:01:54.3]} 21. Bf4
{[%clk 0:02:51]} 21... O-O-O {[%clk 0:01:44.3]} 22. a4 {[%clk 0:02:50.3]} 22...
b4 {[%clk 0:01:33.8]} 23. cxb4 {[%clk 0:02:49.9]} 23... Nd4 {[%clk 0:01:20.3]}
24. Ree1 {[%clk 0:02:44.6]} 24... Nc2 {[%clk 0:01:18.5]} 25. Rec1 {[%clk
0:02:44.3]} 25... Nxa1 {[%clk 0:01:17.4]} 26. Rxc5+ {[%clk 0:02:44.5]} 26... Kd7
{[%clk 0:01:16.8]} 27. Rc7+ {[%clk 0:02:44.5]} 27... Ke8 {[%clk 0:01:16.5]} 28.
Rxb7 {[%clk 0:02:45.1]} 28... e5 {[%clk 0:00:55.6]} 29. Be3 {[%clk 0:02:40.2]}
29... d4 {[%clk 0:00:55.6]} 30. Bd2 {[%clk 0:02:37.8]} 30... Nb3 {[%clk
0:00:55.3]} 31. Be1 {[%clk 0:02:37.6]} 31... Nc1 {[%clk 0:00:53.9]} 32. Be4
{[%clk 0:02:34.1]} 32... Kf8 {[%clk 0:00:50.3]} 33. b5 {[%clk 0:02:34.1]} 33...
Kg7 {[%clk 0:00:47.4]} 34. Rxa7 {[%clk 0:02:34.2]} 34... Rb8 {[%clk 0:00:36.5]}
35. Rc7 {[%clk 0:02:26.3]} 35... Nb3 {[%clk 0:00:31.3]} 36. Bd5 {[%clk
0:02:22.7]} 36... Na1 {[%clk 0:00:16.3]} 37. Rxf7+ {[%clk 0:02:21.5]} 37... Kg6
{[%clk 0:00:16.5]} 38. Rc7 {[%clk 0:02:17.4]} 38... Rhc8 {[%clk 0:00:15.4]} 39.
Rxc8 {[%clk 0:02:17.4]} 39... Rxc8 {[%clk 0:00:16.1]} 40. b6 {[%clk 0:02:17.9]}
40... Bd8 {[%clk 0:00:11.5]} 41. a5 {[%clk 0:02:16.3]} 41... Rb8 {[%clk
0:00:10.2]} 42. Nd2 {[%clk 0:01:57.4]} 42... Bxb6 {[%clk 0:00:09.6]} 43. axb6
{[%clk 0:01:56.9]} 43... Rxb6 {[%clk 0:00:10.5]} 44. Nc4 {[%clk 0:01:57.5]}
44... Rb5 {[%clk 0:00:08.8]} 45. Be4+ {[%clk 0:01:54.1]} 45... Kf6 {[%clk
0:00:08.8]} 46. Kg2 {[%clk 0:01:54.6]} 46... Nc2 {[%clk 0:00:08.5]} 47. Bd2
{[%clk 0:01:55]} 47... Nb4 {[%clk 0:00:07.8]} 48. f4 {[%clk 0:01:51.7]} 48...
exf4 {[%clk 0:00:07.3]} 49. Bxf4 {[%clk 0:01:51.1]} 49... Nd5 {[%clk 0:00:07.8]}
50. Kf3 {[%clk 0:01:49.9]} 50... Nb6 {[%clk 0:00:06]} 51. Be5+ {[%clk
0:01:25.9]} 51... Ke6 {[%clk 0:00:05]} 52. Bxd4 {[%clk 0:01:24.2]} 52... Nxc4
{[%clk 0:00:03.5]} 53. dxc4 {[%clk 0:01:25.1]} 53... Rb4 {[%clk 0:00:02.6]} 54.
Bd5+ {[%clk 0:01:25.2]} 54... Kd6 {[%clk 0:00:03.2]} 55. Bc3 {[%clk 0:01:24.8]}
55... Rb8 {[%clk 0:00:01.5]} 56. g4 {[%clk 0:01:23.8]} 56... Kc5 {[%clk
0:00:01.3]} 57. g5 {[%clk 0:01:22.7]} 57... Kd6 {[%clk 0:00:01.8]} 58. g6 {[%clk
0:01:22.9]} 58... Rf8+ {[%clk 0:00:02.4]} 59. Kg4 {[%clk 0:01:22.8]} 59... Rf1
{[%clk 0:00:02.1]} 60. g7 {[%clk 0:01:23.3]} 60... Rg1+ {[%clk 0:00:02.7]} 61.
Kf3 {[%clk 0:01:22.7]} 61... Rf1+ {[%clk 0:00:02.2]} 62. Kg2 {[%clk 0:01:22.8]}
1-0

[Event "Early-Titled-Tuesday-Blitz-January-23-2024"]
[Site "Chess.com"]
[Date "2024.01.23"]
[Round "6"]
[White "BilodeauA"]
[Black "Iball95"]
[Result "1-0"]
[WhiteElo "2935"]
[BlackElo "2766"]
[TimeControl "180+1"]
[EndTime "9:06:10 PST"]
[Termination "BilodeauA won by resignation"]

1. e4 {[%clk 0:03:00.5]} 1... c5 {[%clk 0:02:59.7]} 2. Nf3 {[%clk 0:03:00.8]}
2... e6 {[%clk 0:03:00.4]} 3. Nc3 {[%clk 0:03:00.4]} 3... Nc6 {[%clk 0:03:00.3]}
4. h3 {[%clk 0:03:00.8]} 4... a6 {[%clk 0:02:53]} 5. d4 {[%clk 0:03:00.7]} 5...
cxd4 {[%clk 0:02:51.2]} 6. Nxd4 {[%clk 0:03:01.6]} 6... Nf6 {[%clk 0:02:49]} 7.
Nxc6 {[%clk 0:03:00.6]} 7... bxc6 {[%clk 0:02:49.1]} 8. e5 {[%clk 0:03:00.9]}
8... Nd5 {[%clk 0:02:49.5]} 9. Ne4 {[%clk 0:03:00.5]} 9... Qc7 {[%clk
0:02:36.6]} 10. f4 {[%clk 0:02:46.3]} 10... Rb8 {[%clk 0:02:36]} 11. c4 {[%clk
0:02:43.2]} 11... Bb4+ {[%clk 0:02:35.7]} 12. Ke2 {[%clk 0:02:29.7]} 12... O-O
{[%clk 0:02:29.8]} 13. cxd5 {[%clk 0:02:13.3]} 13... cxd5 {[%clk 0:02:30.7]} 14.
Nf2 {[%clk 0:01:44.7]} 14... d6 {[%clk 0:02:15.5]} 15. Nd3 {[%clk 0:01:36.3]}
15... Qc4 {[%clk 0:02:04.8]} 16. Kf2 {[%clk 0:01:30.6]} 16... dxe5 {[%clk
0:01:58.5]} 17. Nxe5 {[%clk 0:01:27.5]} 17... Bc5+ {[%clk 0:01:44.3]} 18. Kg3
{[%clk 0:01:27.8]} 18... Qb4 {[%clk 0:01:32.3]} 19. Nc6 {[%clk 0:01:19.9]} 19...
Qb6 {[%clk 0:00:35.2]} 20. Nxb8 {[%clk 0:01:19.8]} 20... Qxb8 {[%clk 0:00:36.1]}
21. Bd3 {[%clk 0:01:19.2]} 21... e5 {[%clk 0:00:34.6]} 22. fxe5 {[%clk
0:01:02.6]} 22... Qxe5+ {[%clk 0:00:35.5]} 23. Bf4 {[%clk 0:01:01.8]} 23... Qxb2
{[%clk 0:00:15.7]} 24. Qc2 {[%clk 0:00:45.9]} 24... Qb6 {[%clk 0:00:12.3]} 25.
Rab1 {[%clk 0:00:43.5]} 25... Qa7 {[%clk 0:00:12.4]} 26. Rhf1 {[%clk 0:00:35.2]}
26... h6 {[%clk 0:00:11.6]} 27. Kh2 {[%clk 0:00:33.3]} 27... Bd4 {[%clk
0:00:11.9]} 28. Kh1 {[%clk 0:00:30.5]} 28... Be6 {[%clk 0:00:11.6]} 29. Qe2
{[%clk 0:00:27.9]} 29... Qd7 {[%clk 0:00:10.6]} 30. Bc2 {[%clk 0:00:26]} 30...
Re8 {[%clk 0:00:09.3]} 31. Qd3 {[%clk 0:00:26.2]} 31... Bf6 {[%clk 0:00:09.3]}
32. Qh7+ {[%clk 0:00:21.1]} 32... Kf8 {[%clk 0:00:09.2]} 33. Bxh6 {[%clk
0:00:21.8]} 33... Ke7 {[%clk 0:00:04.1]} 34. Bxg7 {[%clk 0:00:20.7]} 34... Bxg7
{[%clk 0:00:03.3]} 35. Qxg7 {[%clk 0:00:21.1]} 35... Rg8 {[%clk 0:00:03.9]} 36.
Qxg8 {[%clk 0:00:20.7]} 1-0

[Event "Early-Titled-Tuesday-Blitz-January-23-2024"]
[Site "Chess.com"]
[Date "2024.01.23"]
[Round "6"]
[White "AlexTruskavetsky"]
[Black "gmcorrales"]
[Result "1-0"]
[WhiteElo "2711"]
[BlackElo "2913"]
[TimeControl "180+1"]
[EndTime "9:06:10 PST"]
[Termination "AlexTruskavetsky won by resignation"]

1. d4 {[%clk 0:03:00.9]} 1... Nf6 {[%clk 0:02:59.4]} 2. c4 {[%clk 0:03:00]} 2...
e6 {[%clk 0:02:59.3]} 3. Nc3 {[%clk 0:02:59.8]} 3... Bb4 {[%clk 0:02:58.8]} 4.
e3 {[%clk 0:02:59.8]} 4... O-O {[%clk 0:02:58.6]} 5. Bd3 {[%clk 0:02:59.9]} 5...
c5 {[%clk 0:02:59.1]} 6. a3 {[%clk 0:02:59.6]} 6... cxd4 {[%clk 0:02:59.1]} 7.
exd4 {[%clk 0:03:00.5]} 7... Bxc3+ {[%clk 0:02:57.9]} 8. bxc3 {[%clk 0:03:01.4]}
8... d5 {[%clk 0:02:57.9]} 9. cxd5 {[%clk 0:03:01.3]} 9... exd5 {[%clk
0:02:58.2]} 10. Ne2 {[%clk 0:03:01.2]} 10... h6 {[%clk 0:02:58.3]} 11. O-O
{[%clk 0:03:01.5]} 11... b6 {[%clk 0:02:58.2]} 12. a4 {[%clk 0:03:01.8]} 12...
Ba6 {[%clk 0:02:58.3]} 13. Ng3 {[%clk 0:03:00.7]} 13... Bxd3 {[%clk 0:02:58]}
14. Qxd3 {[%clk 0:03:01.6]} 14... Nc6 {[%clk 0:02:58.4]} 15. Nf5 {[%clk
0:03:01.1]} 15... Qd7 {[%clk 0:02:24.9]} 16. Bxh6 {[%clk 0:02:58.8]} 16... Ne8
{[%clk 0:00:54.8]} 17. Rae1 {[%clk 0:02:50.7]} 17... f6 {[%clk 0:00:48]} 18. Qh3
{[%clk 0:02:22]} 18... Rf7 {[%clk 0:00:44.3]} 19. Bf4 {[%clk 0:02:04.9]} 19...
Rd8 {[%clk 0:00:43.6]} 20. Re3 {[%clk 0:02:02.7]} 20... Ne7 {[%clk 0:00:43.5]}
21. g4 {[%clk 0:01:35.2]} 21... Nxf5 {[%clk 0:00:42.3]} 22. gxf5 {[%clk
0:01:36.1]} 22... Nd6 {[%clk 0:00:42]} 23. Re6 {[%clk 0:01:35.2]} 23... Ne4
{[%clk 0:00:16.5]} 24. Ra1 {[%clk 0:01:33.4]} 24... Re8 {[%clk 0:00:15.7]} 25.
a5 {[%clk 0:01:22.3]} 25... Rfe7 {[%clk 0:00:15.9]} 26. axb6 {[%clk 0:01:21.1]}
26... axb6 {[%clk 0:00:16.8]} 27. Rxb6 {[%clk 0:01:20.3]} 27... Qc8 {[%clk
0:00:16]} 28. Rc1 {[%clk 0:01:14.6]} 28... Qc4 {[%clk 0:00:15.9]} 29. Qf3 {[%clk
0:01:12.9]} 29... Qc8 {[%clk 0:00:14.5]} 30. Bg3 {[%clk 0:01:10.4]} 30... Nd2
{[%clk 0:00:14.4]} 31. Qd3 {[%clk 0:01:10.1]} 31... Nc4 {[%clk 0:00:13.3]} 32.
Rbb1 {[%clk 0:01:08.6]} 32... Re4 {[%clk 0:00:13.6]} 33. Rb5 {[%clk 0:01:02.8]}
33... Qxf5 {[%clk 0:00:09.6]} 34. Rf1 {[%clk 0:00:54.8]} 34... Qh3 {[%clk
0:00:07.5]} 35. Rxd5 {[%clk 0:00:50.3]} 35... Nb2 {[%clk 0:00:07.8]} 36. Qb5
{[%clk 0:00:48.8]} 36... Re2 {[%clk 0:00:06.2]} 37. Rd8 {[%clk 0:00:44.8]} 37...
Rxd8 {[%clk 0:00:03.8]} 38. Qxe2 {[%clk 0:00:45]} 38... Na4 {[%clk 0:00:02.2]}
39. Qc4+ {[%clk 0:00:45.3]} 39... Kh7 {[%clk 0:00:02.8]} 40. Qxa4 {[%clk
0:00:46.1]} 40... Rd5 {[%clk 0:00:03.4]} 41. Qc2+ {[%clk 0:00:46.3]} 41... Rf5
{[%clk 0:00:03.4]} 42. c4 {[%clk 0:00:45.3]} 42... Qg4 {[%clk 0:00:03.7]} 43. c5
{[%clk 0:00:45.3]} 43... Qg6 {[%clk 0:00:04.6]} 44. c6 {[%clk 0:00:44.7]} 44...
Ra5 {[%clk 0:00:01.1]} 45. Qxg6+ {[%clk 0:00:45.6]} 45... Kxg6 {[%clk
0:00:01.8]} 46. c7 {[%clk 0:00:42.6]} 46... Ra8 {[%clk 0:00:02.7]} 47. d5 {[%clk
0:00:43.1]} 47... Ra1 {[%clk 0:00:03.6]} 48. c8=Q {[%clk 0:00:42.7]} 1-0